Workbook

Sheet INGRESO DE DATOS
A9: INGRESE LOS DATOS DEL PROPUESTO ASEGURADO:
B11: Nombre del Asegurado principal: | D11: NOMBRE Y APELLIDO
D13: Número de adultos en la póliza: | G13: 2 | H13: Número de hijos en la póliza: | J13: 3
E15: Edad del titular: | G15: 54 | H15: Edad de cónyuge: | J15: 54
A18: INGRESE EL NOMBRE DE LA AGENCIA ASESORA:
B20: Nombre de la Agencia: | D20: AGENCIA
A23: ESCOJA EL PRODUCTO PARA VISUALIZAR LA COTIZACIÓN RESPECTIVA:

Sheet Privilege-Care-International
A12: Cotización de Seguro Médico Internacional — PRIVILEGE CARE INTERNATIONAL
A13: ESTE PRODUCTO SOLO CUBRE GASTOS MEDICOS FUERA DE VENEZUELA
A15: PRIVILEGE CARE INTERNATIONAL | H15: =+'INGRESO DE DATOS'!$D$11 -> NOMBRE Y APELLIDO
H17: =+'INGRESO DE DATOS'!$D$20 -> AGENCIA
J19: =+'INGRESO DE DATOS'!$G$13 -> 2 | M19: =+'INGRESO DE DATOS'!$G$15 -> 54
J21: =+'INGRESO DE DATOS'!$J$13 -> 3 | M21: =+'INGRESO DE DATOS'!$J$15 -> 54
I23: FALSE | K23: COMPLICACIONES DE MATERNIDAD
H25: FECHA DE COTIZACION : | J25: =NOW() -> 2023-01-17T12:25:17.500
H28: Deducibles | J28: PLAN 1 | K28: PLAN 2 | L28: PLAN 3 | M28: PLAN 4
H29: Dentro del pais de residencia | J29: n/a | K29: n/a | L29: n/a | M29: n/a
H30: Fuera del pais de residencia | J30: 2000 | K30: 5000 | L30: 10000 | M30: 20000
H33: TARIFAS ANUALES
H34: Prima de Titular : | J34: =VLOOKUP($M$19,Tablas!$A$140:$H$163,5,TRUE) -> 6076 | K34: =VLOOKUP($M$19,Tablas!$A$140:$H$163,6,TRUE) -> 4319 | L34: =VLOOKUP($M$19,Tablas!$A$140:$H$163,7,TRUE) -> 3562 | M34: =VLOOKUP($M$19,Tablas!$A$140:$H$163,8,TRUE) -> 2723
H35: Prima de Cónyuge | J35: =IF($J$19=1,0,(VLOOKUP($M$21,Tablas!$A$140:$H$163,5,TRUE))) -> 6076 | K35: =IF($J$19=1,0,(VLOOKUP($M$21,Tablas!$A$140:$H$163,6,TRUE))) -> 4319 | L35: =IF($J$19=1,0,(VLOOKUP($M$21,Tablas!$A$140:$H$163,7,TRUE))) -> 3562 | M35: =IF($J$19=1,0,(VLOOKUP($M$21,Tablas!$A$140:$H$163,8,TRUE))) -> 2723
H36: Primas Hijos : | J36: =IF($J$21=0,0,(VLOOKUP($J$21,Tablas!$A$164:$H$166,5,TRUE))) -> 2535 | K36: =IF($J$21=0,0,(VLOOKUP($J$21,Tablas!$A$164:$H$166,6,TRUE))) -> 1801 | L36: =IF($J$21=0,0,(VLOOKUP($J$21,Tablas!$A$164:$H$166,7,TRUE))) -> 1522 | M36: =IF($J$21=0,0,(VLOOKUP($J$21,Tablas!$A$164:$H$166,8,TRUE))) -> 1124
H37: Prima Rider Complic. Maternidad | J37: =+IF($I$23=FALSE,0,Tablas!F$167) -> 0 | K37: =+IF($I$23=FALSE,0,Tablas!G$167) -> 0 | L37: =+IF($I$23=FALSE,0,Tablas!H$167) -> 0 | M37: =+IF($I$23=FALSE,0,Tablas!H$167) -> 0
H38: TOTAL PRIMA NETA : | J38: =SUM(J34:J37) -> 14687 | K38: =SUM(K34:K37) -> 10439 | L38: =SUM(L34:L37) -> 8646 | M38: =SUM(M34:M37) -> 6570
H39: Costo Administrativo Anual : | J39: 75 | K39: 75 | L39: 75 | M39: 75
H40: GRAN TOTAL : | J40: =SUM(J38:J39) -> 14762 | K40: =SUM(K38:K39) -> 10514 | L40: =SUM(L38:L39) -> 8721 | M40: =SUM(M38:M39) -> 6645
H42: TARIFAS SEMESTRALES
H43: Prima de Titular : | J43: =VLOOKUP($M$19,Tablas!$A$173:$H$196,5,TRUE) -> 3220.28 | K43: =VLOOKUP($M$19,Tablas!$A$173:$H$196,6,TRUE) -> 2289.07 | L43: =VLOOKUP($M$19,Tablas!$A$173:$H$196,7,TRUE) -> 1887.86 | M43: =VLOOKUP($M$19,Tablas!$A$173:$H$196,8,TRUE) -> 1443.19
H44: Prima de Cónyuge | J44: =IF($J$19=1,0,(VLOOKUP($M$21,Tablas!$A$173:$H$196,5,TRUE))) -> 3220.28 | K44: =IF($J$19=1,0,(VLOOKUP($M$21,Tablas!$A$173:$H$196,6,TRUE))) -> 2289.07 | L44: =IF($J$19=1,0,(VLOOKUP($M$21,Tablas!$A$173:$H$196,7,TRUE))) -> 1887.86 | M44: =IF($J$19=1,0,(VLOOKUP($M$21,Tablas!$A$173:$H$196,8,TRUE))) -> 1443.19
H45: Primas Hijos : | J45: =IF($J$21=0,0,(VLOOKUP($J$21,Tablas!$A$197:$H$199,5,TRUE))) -> 1343.55 | K45: =IF($J$21=0,0,(VLOOKUP($J$21,Tablas!$A$197:$H$199,6,TRUE))) -> 954.53 | L45: =IF($J$21=0,0,(VLOOKUP($J$21,Tablas!$A$197:$H$199,7,TRUE))) -> 806.66 | M45: =IF($J$21=0,0,(VLOOKUP($J$21,Tablas!$A$197:$H$199,8,TRUE))) -> 595.72
H46: Prima Rider Complic. Maternidad | J46: =+IF($I$23=FALSE,0,Tablas!F$200) -> 0 | K46: =+IF($I$23=FALSE,0,Tablas!G$200) -> 0 | L46: =+IF($I$23=FALSE,0,Tablas!H$200) -> 0 | M46: =+IF($I$23=FALSE,0,Tablas!H$200) -> 0
H47: TOTAL PRIMA NETA : | J47: =SUM(J43:J46) -> 7784.11 | K47: =SUM(K43:K46) -> 5532.67 | L47: =SUM(L43:L46) -> 4582.38 | M47: =SUM(M43:M46) -> 3482.1
H48: Costo Administrativo Anual : | J48: 75 | K48: 75 | L48: 75 | M48: 75
H49: GRAN TOTAL (1ra Cuota) : | J49: =SUM(J47:J48) -> 7859.11 | K49: =SUM(K47:K48) -> 5607.67 | L49: =SUM(L47:L48) -> 4657.38 | M49: =SUM(M47:M48) -> 3557.1
H50: GRAN TOTAL (2da Cuota) : | J50: =J47 -> 7784.11 | K50: 5532.67 | L50: 4582.38 | M50: =M47 -> 3482.1
H53: TARIFAS EN US$ — VÁLIDAS DESDE 01 ENERO DE 2023
H54: Este presupuesto solamente tiene carácter informativo y en ningún momento expresa compromiso legal para suministrarle cobertura de seguro. La emisión de una póliza de seguro Bupa está sujeta a todas las evaluaciones de riesgo por parte de Bupa y a la recepción de todos los pagos de prima requeridos.

Sheet Advantage (LA) (hidden)
A10: Cotización de Seguro Médico Internacional - Bupa ADVANTAGE Care (cobertura solo Latinoamérica)
A12: Bupa Advantage Care (cobertura solo en Latinoamérica) | H12: =+'INGRESO DE DATOS'!$D$11 -> NOMBRE Y APELLIDO
A13: Cobertura Máxima anual | C13: US $ 3,500,000
A14: Cobertura Geografica | C14: Limitada a Latinoamérica excluyendo México | H14: =+'INGRESO DE DATOS'!$D$20 -> AGENCIA
A15: Condiciones médicas cubiertas | C15: Todas las condiciones médicas
A16: Redes de proveedores | C16: Red de Proveedores "Bupa Advantage" | J16: =+'INGRESO DE DATOS'!$G$13 -> 2 | M16: =+'INGRESO DE DATOS'!$G$15 -> 54
A17: Opciones fuera de la Red | C17: NO, solo en casos de emergencia | F17: FECHA DE COTIZACION :
A18: Requiere preautorización | C18: SI, 30% de penalización por omitir prenotificación | F18: =NOW() -> 2023-01-17T12:25:17.500 | J18: =+'INGRESO DE DATOS'!$J$13 -> 3 | M18: =+'INGRESO DE DATOS'!$J$15 -> 54
A20: Número máximo de días de hospitalización | C20: Ilimitado | I20: TRUE | K20: COMPLICACIONES DE MATERNIDAD
A21: Habitación y alimentación | C21: 100% dentro de Red Bupa
C22: "UCR" para L.A. en emergencias fuera de Red Bupa | I22: TRUE | K22: TRASPLANTE DE ORGANOS
A23: Cuidados Intensivos | C23: 100% dentro de Red Bupa
C24: "UCR" para L.A. en emergencias fuera de Red Bupa
A25: Cobertura de Maternidad | C25: $5,000 (Excepto planes 4,5, y 6) | F25: Deducibles | H25: PLAN 1 | I25: PLAN 2 | J25: PLAN 3 | K25: PLAN 4 | L25: PLAN 5 | M25: PLAN 6
A26: Cobertura Provisional de Recién Nacido | C26: $30,000 por los primeros 90 días | F26: Dentro del pais de residencia | H26: n/a | I26: 1000 | J26: 2000 | K26: 5000 | L26: 10000 | M26: 20000
A27: Cuidado del Recién Nacido saludable | C27: Ya incluída dentro del beneficio de Maternidad | F27: Fuera del pais de residencia | H27: n/a | I27: 2000 | J27: 3000 | K27: 5000 | L27: 10000 | M27: 20000
A28: Cobertura de Complicaciones de Maternidad | C28: Disponible a través de cobertura opcional adicional
A29: Trasplante de Organos | C29: $1,000,000 de por vida, por diagnóstico
A30: Condiciones congénitas y hereditarias | C30: <18 años $300,000 de por vida; >=18 al 100% | F30: Tarifas Anuales
A31: Coberturas opcionales (Riders) | C31: Complicaciones de Maternidad por $500,000 | F31: Prima de Titular : | H31: n/a | I31: =VLOOKUP($M$16,Tablas!$A$341:$H$364,4,TRUE) ->  | J31: =VLOOKUP($M$16,Tablas!$A$341:$H$364,5,TRUE) ->  | K31: =VLOOKUP($M$16,Tablas!$A$341:$H$364,6,TRUE) ->  | L31: =VLOOKUP($M$16,Tablas!$A$341:$H$364,7,TRUE) ->  | M31: =VLOOKUP($M$16,Tablas!$A$341:$H$364,8,TRUE) -> 
C32: Trasplante de órganos por $ 300,000 adicionales | F32: Prima de Cónyuge | H32: n/a | I32: =IF($J$16=1,0,(VLOOKUP($M$18,Tablas!$A$341:$H$364,4,TRUE))) ->  | J32: =IF($J$16=1,0,(VLOOKUP($M$18,Tablas!$A$341:$H$364,5,TRUE))) ->  | K32: =IF($J$16=1,0,(VLOOKUP($M$18,Tablas!$A$341:$H$364,6,TRUE))) ->  | L32: =IF($J$16=1,0,(VLOOKUP($M$18,Tablas!$A$341:$H$364,7,TRUE))) ->  | M32: =IF($J$16=1,0,(VLOOKUP($M$18,Tablas!$A$341:$H$364,8,TRUE))) -> 
A33: Acompañamiento de menores hospitalizados | C33: $300 por día | F33: Primas Hijos : | H33: n/a | I33: =IF($J$18=0,0,(VLOOKUP($J$18,Tablas!$A$365:$H$367,4,TRUE))) ->  | J33: =IF($J$18=0,0,(VLOOKUP($J$18,Tablas!$A$365:$H$367,5,TRUE))) ->  | K33: =IF($J$18=0,0,(VLOOKUP($J$18,Tablas!$A$365:$H$367,6,TRUE))) ->  | L33: =IF($J$18=0,0,(VLOOKUP($J$18,Tablas!$A$365:$H$367,7,TRUE))) ->  | M33: =IF($J$18=0,0,(VLOOKUP($J$18,Tablas!$A$365:$H$367,8,TRUE))) -> 
A34: Ambulancia aérea | C34: $100,000 por año y ticket aéreo de retorno | F34: Prima Rider Complic. Maternidad | H34: n/a | I34: =+IF($I$20=FALSE,0,Tablas!D$368) -> 0 | J34: =+IF($I$20=FALSE,0,Tablas!E$368) -> 0 | K34: =+IF($I$20=FALSE,0,Tablas!F$368) -> 0 | L34: =+IF($I$20=FALSE,0,Tablas!G$368) -> 0 | M34: =+IF($I$20=FALSE,0,Tablas!H$368) -> 0
A35: Repatriación restos mortales | C35: 1 | F35: Prima Rider Trasplante Organos | H35: n/a | I35: =IF($I$22=FALSE,0,Tablas!D$369) -> 0 | J35: =IF($I$22=FALSE,0,Tablas!E$369) -> 0 | K35: =IF($I$22=FALSE,0,Tablas!F$369) -> 0 | L35: =IF($I$22=FALSE,0,Tablas!G$369) -> 0 | M35: =IF($I$22=FALSE,0,Tablas!H$369) -> 0
A36: Medicamentos por receta | C36: $6,000 por Asegurado, por año póliza | F36: TOTAL PRIMA NETA : | H36: n/a | I36: =SUM(I31:I35) -> 
A37: Almacenamiento de sangre de cordon umbilical | C37: $500 (Excepto planes 4,5, y 6) | F37: Costo Administrativo Anual : | H37: n/a | I37: 75 | J37: 75 | K37: 75 | L37: 75 | M37: 75
F38: GRAN TOTAL : | H38: n/a | I38: =SUM(I36:I37) ->  | J38: =SUM(J36:J37) ->  | K38: =SUM(K36:K37) ->  | L38: =SUM(L36:L37) ->  | M38: =SUM(M36:M37) -> 
A39: Atención médica en el hogar | C39: 100% de usual/acostumbrado y razonable
A40: Rehabilitación | C40: 100% de usual/acostumbrado y razonable | F40: Tarifas Semestrales
A41: Residencia y cuidados paliativos | C41: 100% de usual/acostumbrado y razonable | F41: Prima de Titular : | H41: n/a | I41: =VLOOKUP($M$16,Tablas!$A$374:$H$397,4,TRUE) ->  | J41: =VLOOKUP($M$16,Tablas!$A$374:$H$397,5,TRUE) ->  | K41: =VLOOKUP($M$16,Tablas!$A$374:$H$397,6,TRUE) ->  | L41: =VLOOKUP($M$16,Tablas!$A$374:$H$397,7,TRUE) ->  | M41: =VLOOKUP($M$16,Tablas!$A$374:$H$397,8,TRUE) -> 
A42: Cobertura de actividades peligrosas | C42: 1 | F42: Prima de Cónyuge | H42: n/a | I42: =IF($J$16=1,0,(VLOOKUP($M$18,Tablas!$A$374:$H$397,4,TRUE))) ->  | J42: =IF($J$16=1,0,(VLOOKUP($M$18,Tablas!$A$374:$H$397,5,TRUE))) ->  | K42: =IF($J$16=1,0,(VLOOKUP($M$18,Tablas!$A$374:$H$397,6,TRUE))) ->  | L42: =IF($J$16=1,0,(VLOOKUP($M$18,Tablas!$A$374:$H$397,7,TRUE))) ->  | M42: =IF($J$16=1,0,(VLOOKUP($M$18,Tablas!$A$374:$H$397,8,TRUE))) -> 
A43: Chequeos generales de rutina | C43: Hasta US$150 por año póliza.Sin deducible | F43: Primas Hijos : | H43: n/a | I43: =IF($J$18=0,0,(VLOOKUP($J$18,Tablas!$A$398:$H$400,4,TRUE))) ->  | J43: =IF($J$18=0,0,(VLOOKUP($J$18,Tablas!$A$398:$H$400,5,TRUE))) ->  | K43: =IF($J$18=0,0,(VLOOKUP($J$18,Tablas!$A$398:$H$400,6,TRUE))) ->  | L43: =IF($J$18=0,0,(VLOOKUP($J$18,Tablas!$A$398:$H$400,7,TRUE))) ->  | M43: =IF($J$18=0,0,(VLOOKUP($J$18,Tablas!$A$398:$H$400,8,TRUE))) -> 
A44: Cobertura de VIH, SIDA, CAS | C44: Solo como efecto de transfusión de sangre | F44: Prima Rider Complic. Maternidad | H44: n/a | I44: =+IF($I$20=FALSE,0,Tablas!D$401) -> 0 | J44: =+IF($I$20=FALSE,0,Tablas!E$401) -> 0 | K44: =+IF($I$20=FALSE,0,Tablas!F$401) -> 0 | L44: =+IF($I$20=FALSE,0,Tablas!G$401) -> 0 | M44: =+IF($I$20=FALSE,0,Tablas!H$401) -> 0
A45: Cobertura de brazos y piernas artificiales | C45: $30,000 por año y hasta $120,000 de por vida | F45: Prima Rider Trasplante Organos | H45: n/a | I45: =IF($I$22=FALSE,0,Tablas!D$402) -> 0 | J45: =IF($I$22=FALSE,0,Tablas!E$402) -> 0 | K45: =IF($I$22=FALSE,0,Tablas!F$402) -> 0 | L45: =IF($I$22=FALSE,0,Tablas!G$402) -> 0 | M45: =IF($I$22=FALSE,0,Tablas!H$402) -> 0
A46: Cobertura extendida para dependientes en caso de muerte de asegurado principal | C46: 2 años sin costo | F46: TOTAL PRIMA NETA : | H46: n/a | I46: =SUM(I41:I45) -> 
F47: Costo Administrativo Anual : | H47: n/a | I47: 75 | J47: 75 | K47: 75 | L47: 75 | M47: 75
F48: GRAN TOTAL (1ra Cuota) : | H48: n/a | I48: =SUM(I46:I47) ->  | J48: =SUM(J46:J47) ->  | K48: =SUM(K46:K47) ->  | L48: =SUM(L46:L47) ->  | M48: =SUM(M46:M47) -> 
F49: GRAN TOTAL (2da Cuota) : | H49: n/a | I49: =I46 ->  | J49: =J46 -> 
F50: Tarifas en US $ - Válidas desde 01 Ene 2013

Sheet Secure-Care-International
A14: Cotización de Seguro Médico Internacional — SECURE CARE INTERNATIONAL
A15: ESTE PRODUCTO SOLO CUBRE GASTOS MEDICOS FUERA DE VENEZUELA
A17: SECURE CARE INTERNATIONAL | H17: =+'INGRESO DE DATOS'!$D$11 -> NOMBRE Y APELLIDO
H19: =+'INGRESO DE DATOS'!$D$20 -> AGENCIA
J21: =+'INGRESO DE DATOS'!$G$13 -> 2 | M21: =+'INGRESO DE DATOS'!$G$15 -> 54
J23: =+'INGRESO DE DATOS'!$J$13 -> 3 | M23: =+'INGRESO DE DATOS'!$J$15 -> 54
I25: FALSE | K25: COMPLICACIONES DE MATERNIDAD
I27: FALSE | K27: TRASPLANTE DE ORGANOS
H31: FECHA DE COTIZACION : | J31: =NOW() -> 2023-01-17T12:25:17.500
H34: Deducibles | J34: PLAN 1 | K34: PLAN 2 | L34: PLAN 3 | M34: PLAN 4
H35: Dentro del pais de residencia | J35: n/a | K35: n/a | L35: n/a | M35: n/a
H36: Fuera del pais de residencia | J36: 2000 | K36: 5000 | L36: 10000 | M36: 20000
H39: TARIFAS ANUALES
H40: Prima de Titular : | J40: =VLOOKUP($M$21,Tablas!$A$408:$H$431,5,TRUE) -> 3217 | K40: =VLOOKUP($M$21,Tablas!$A$408:$H$431,6,TRUE) -> 2287 | L40: =VLOOKUP($M$21,Tablas!$A$408:$H$431,7,TRUE) -> 1978 | M40: =VLOOKUP($M$21,Tablas!$A$408:$H$431,8,TRUE) -> 1481
H41: Prima de Cónyuge | J41: =IF($J$21=1,0,(VLOOKUP($M$23,Tablas!$A$408:$H$431,5,TRUE))) -> 3217 | K41: =IF($J$21=1,0,(VLOOKUP($M$23,Tablas!$A$408:$H$431,6,TRUE))) -> 2287 | L41: =IF($J$21=1,0,(VLOOKUP($M$23,Tablas!$A$408:$H$431,7,TRUE))) -> 1978 | M41: =IF($J$21=1,0,(VLOOKUP($M$23,Tablas!$A$408:$H$431,8,TRUE))) -> 1481
H42: Primas Hijos : | J42: =IF($J$23=0,0,(VLOOKUP($J$23,Tablas!$A$432:$H$434,5,TRUE))) -> 1429 | K42: =IF($J$23=0,0,(VLOOKUP($J$23,Tablas!$A$432:$H$434,6,TRUE))) -> 1017 | L42: =IF($J$23=0,0,(VLOOKUP($J$23,Tablas!$A$432:$H$434,7,TRUE))) -> 877 | M42: =IF($J$23=0,0,(VLOOKUP($J$23,Tablas!$A$432:$H$434,8,TRUE))) -> 647
H43: Prima Rider Complic. Maternidad | J43: =+IF($I$25=FALSE,0,Tablas!F$435) -> 0 | K43: =+IF($I$25=FALSE,0,Tablas!G$435) -> 0 | L43: =+IF($I$25=FALSE,0,Tablas!H$435) -> 0 | M43: =+IF($I$25=FALSE,0,Tablas!H$435) -> 0
H44: Prima Rider Trasplante Organos | J44: =IF($I$27=FALSE,0,Tablas!F$436) -> 0 | K44: =IF($I$27=FALSE,0,Tablas!G$436) -> 0 | L44: =IF($I$27=FALSE,0,Tablas!H$436) -> 0 | M44: =IF($I$27=FALSE,0,Tablas!H$436) -> 0
H45: TOTAL PRIMA NETA : | J45: =SUM(J40:J44) -> 7863 | K45: =SUM(K40:K44) -> 5591 | L45: =SUM(L40:L44) -> 4833 | M45: =SUM(M40:M44) -> 3609
H46: Costo Administrativo Anual : | J46: 75 | K46: 75 | L46: 75 | M46: 75
H47: GRAN TOTAL : | J47: =SUM(J45:J46) -> 7938 | K47: =SUM(K45:K46) -> 5666 | L47: =SUM(L45:L46) -> 4908 | M47: =SUM(M45:M46) -> 3684
H49: TARIFAS SEMESTRALES
H50: Prima de Titular : | J50: =VLOOKUP($M$21,Tablas!$A$441:$H$464,5,TRUE) -> 1705.01 | K50: =VLOOKUP($M$21,Tablas!$A$441:$H$464,6,TRUE) -> 1212.11 | L50: =VLOOKUP($M$21,Tablas!$A$441:$H$464,7,TRUE) -> 1048.34 | M50: =VLOOKUP($M$21,Tablas!$A$441:$H$464,8,TRUE) -> 784.93
H51: Prima de Cónyuge | J51: =IF($J$21=1,0,(VLOOKUP($M$23,Tablas!$A$441:$H$464,5,TRUE))) -> 1705.01 | K51: =IF($J$21=1,0,(VLOOKUP($M$23,Tablas!$A$441:$H$464,6,TRUE))) -> 1212.11 | L51: =IF($J$21=1,0,(VLOOKUP($M$23,Tablas!$A$441:$H$464,7,TRUE))) -> 1048.34 | M51: =IF($J$21=1,0,(VLOOKUP($M$23,Tablas!$A$441:$H$464,8,TRUE))) -> 784.93
H52: Primas Hijos : | J52: =IF($J$23=0,0,(VLOOKUP($J$23,Tablas!$A$465:$H$467,5,TRUE))) -> 757.37 | K52: =IF($J$23=0,0,(VLOOKUP($J$23,Tablas!$A$465:$H$467,6,TRUE))) -> 539.01 | L52: =IF($J$23=0,0,(VLOOKUP($J$23,Tablas!$A$465:$H$467,7,TRUE))) -> 464.81 | M52: =IF($J$23=0,0,(VLOOKUP($J$23,Tablas!$A$465:$H$467,8,TRUE))) -> 342.91
H53: Prima Rider Complic. Maternidad | J53: =+IF($I$25=FALSE,0,Tablas!F$468) -> 0 | K53: =+IF($I$25=FALSE,0,Tablas!G$468) -> 0 | L53: =+IF($I$25=FALSE,0,Tablas!H$468) -> 0 | M53: =+IF($I$25=FALSE,0,Tablas!H$468) -> 0
H54: Prima Rider Trasplante Organos | J54: =IF($I$27=FALSE,0,Tablas!F$469) -> 0 | K54: =IF($I$27=FALSE,0,Tablas!G$469) -> 0 | L54: =IF($I$27=FALSE,0,Tablas!H$469) -> 0 | M54: =IF($I$27=FALSE,0,Tablas!H$469) -> 0
H55: TOTAL PRIMA NETA : | J55: =SUM(J50:J54) -> 4167.39 | K55: =SUM(K50:K54) -> 2963.23 | L55: =SUM(L50:L54) -> 2561.49 | M55: =SUM(M50:M54) -> 1912.77
H56: Costo Administrativo Anual : | J56: 75 | K56: 75 | L56: 75 | M56: 75
H57: GRAN TOTAL (1ra Cuota) : | J57: =SUM(J55:J56) -> 4242.39 | K57: =SUM(K55:K56) -> 3038.23 | L57: =SUM(L55:L56) -> 2636.49 | M57: =SUM(M55:M56) -> 1987.77
H58: GRAN TOTAL (2da Cuota) : | J58: =J55 -> 4167.39 | K58: =K55 -> 2963.23 | L58: =L55 -> 2561.49 | M58: =M55 -> 1912.77
H59: GRAN TOTAL (2da Cuota) : | J59: =J55 -> 4167.39 | K59: =K55 -> 2963.23 | L59: =L55 -> 2561.49 | M59: =M55 -> 1912.77
H61: TARIFAS EN US$ — VÁLIDAS DESDE 01 ENERO DE 2023
H62: Este presupuesto solamente tiene carácter informativo y en ningún momento expresa compromiso legal para suministrarle cobertura de seguro. La emisión de una póliza de seguro Bupa está sujeta a todas las evaluaciones de riesgo por parte de Bupa y a la recepción de todos los pagos de prima requeridos.

Sheet Resumen-Tarifas-Anuales
A13: Cotización de Seguro Médico Internacional
C15: =+'INGRESO DE DATOS'!$D$11 -> NOMBRE Y APELLIDO
C17: =+'INGRESO DE DATOS'!$D$20 -> AGENCIA
E19: =+'INGRESO DE DATOS'!$G$13 -> 2 | H19: =+'INGRESO DE DATOS'!$G$15 -> 54
A20: FECHA DE COTIZACION :
A21: =NOW() -> 2023-01-17T12:25:17.500 | E21: =+'INGRESO DE DATOS'!$J$13 -> 3 | H21: =+'INGRESO DE DATOS'!$J$15 -> 54
A23: DEDUCIBLES | C23: PLAN 1 | D23: PLAN 2 | E23: PLAN 3 | F23: PLAN 4
A24: Dentro del pais de residencia | C24: n/a | D24: n/a | E24: n/a | F24: n/a
A25: Fuera del pais de residencia | C25: 2000 | D25: 5000 | E25: 10000 | F25: 20000
A27: PRODUCTOS | C27: Tarifas Anuales
A28: Privilege Care International | C28: =+'Privilege-Care-International'!J40 -> 14762 | D28: =+'Privilege-Care-International'!K40 -> 10514 | E28: =+'Privilege-Care-International'!L40 -> 8721 | F28: =+'Privilege-Care-International'!M40 -> 6645
A29: Secure Care International | C29: =+'Secure-Care-International'!J47 -> 7938 | D29: =+'Secure-Care-International'!K47 -> 5666 | E29: =+'Secure-Care-International'!L47 -> 4908 | F29: =+'Secure-Care-International'!M47 -> 3684
A31: PRODUCTOS | C31: Tarifas Semestrales*
A32: Privilege Care International | C32: ='Privilege-Care-International'!J50 -> 7784.11 | D32: ='Privilege-Care-International'!K50 -> 5532.67 | E32: ='Privilege-Care-International'!L50 -> 4582.38 | F32: ='Privilege-Care-International'!M50 -> 3482.1
A33: Secure Care International | C33: ='Secure-Care-International'!J58 -> 4167.39 | D33: ='Secure-Care-International'!K58 -> 2963.23 | E33: ='Secure-Care-International'!L58 -> 2561.49 | F33: ='Secure-Care-International'!M58 -> 1912.77
A35: (*) USD 75 de costo administrativo annual aplica a la primera cuota
A37: TARIFAS EN US$ — VÁLIDAS DESDE 01 ENERO DE 2023
A39: Este presupuesto solamente tiene carácter informativo y en ningún momento expresa compromiso legal para suministrarle cobertura de seguro. La emisión de una póliza de seguro Bupa está sujeta a todas las evaluaciones de riesgo por parte de Bupa y a la recepción de todos los pagos de prima requeridos.

Sheet Tablas (hidden)
A2: EXCLUSIVE | J2: FACTOR SEMESTRAL : | L2: 0.53
A3: TARIFAS ANUALES
A4: EDAD
D5: DW2 | E5: DW3 | F5: DW4 | G5: DW5 | H5: DW6
A66: 1 | B66: Rider Comp. Maternidad | D66: =+D33*$L$2 -> 0 | E66: 0 | F66: 0 | G66: 0 | H66: 0
A67: 1 | B67: Transplante de organos | D67: 0 | E67: 0 | F67: 0 | G67: 0 | H67: 0
A69: DIAMOND (LATINAMERICA ONLY)
A70: TARIFAS ANUALES
A71: EDAD
A73: 18 | B73: - 24
A74: 25 | B74: - 29
A75: 30 | B75: - 34
A76: 35 | B76: - 39
A77: 40 | B77: - 44
A78: 45 | B78: - 49
A79: 50 | B79: - 54
A80: 55 | B80: - 59
A81: 60
A82: 61
A83: 62
A84: 63
A85: 64
A86: 65
A87: 66
A88: 67
A89: 68
A90: 69
A91: 70
A92: 71
A93: 72
A94: 73
A95: 74
A96: 75 | B96: o más
A97: 1 | B97: Hijo
A98: 2 | B98: Hijos
A99: 3 | B99: Hijos o más
A100: 1 | B100: Rider Comp. Maternidad
A101: 1 | B101: Transplante de organos
A103: TARIFAS SEMESTRALES
A104: EDAD
A106: 18 | B106: - 24
A107: 25 | B107: - 29
A108: 30 | B108: - 34
A109: 35 | B109: - 39
A110: 40 | B110: - 44
A111: 45 | B111: - 49
A112: 50 | B112: - 54
A113: 55 | B113: - 59
A114: 60
A115: 61
A116: 62
A117: 63
A118: 64
A119: 65
A120: 66
A121: 67
A122: 68
A123: 69
A124: 70
A125: 71
A126: 72
A127: 73
A128: 74
A129: 75 | B129: o más
A130: 1 | B130: Hijo
A131: 2 | B131: Hijos
A132: 3 | B132: Hijos o más
A133: 1 | B133: Rider Comp. Maternidad
A134: 1 | B134: Transplante de organos
A136: PRIVILEGE
A137: TARIFAS ANUALES
A138: EDAD
D139: CW2 | E139: CW3 | F139: CW4 | G139: CW5 | H139: CW6
A140: 18 | B140: - 24 | E140: 2677 | F140: 1903 | G140: 1349 | H140: 1025
A141: 25 | B141: - 29 | E141: 2966 | F141: 2108 | G141: 1494 | H141: 1139
A142: 30 | B142: - 34 | E142: 3326 | F142: 2364 | G142: 1809 | H142: 1380
A143: 35 | B143: - 39 | E143: 3723 | F143: 2647 | G143: 2026 | H143: 1547
A144: 40 | B144: - 44 | E144: 4140 | F144: 2943 | G144: 2233 | H144: 1704
A145: 45 | B145: - 49 | E145: 4629 | F145: 3292 | G145: 2495 | H145: 1906
A146: 50 | B146: - 54 | E146: 6076 | F146: 4319 | G146: 3562 | H146: 2723
A147: 55 | B147: - 59 | E147: 6466 | F147: 4596 | G147: 3789 | H147: 2899
A148: 60 | E148: 7356 | F148: 5229 | G148: 4507 | H148: 3618
A149: 61 | E149: 7902 | F149: 5617 | G149: 4842 | H149: 3886
A150: 62 | E150: 8654 | F150: 6152 | G150: 5301 | H150: 4257
A151: 63 | E151: 9198 | F151: 6539 | G151: 5635 | H151: 4527
A152: 64 | E152: 9950 | F152: 7073 | G152: 6097 | H152: 4897
A153: 65 | E153: 12580 | F153: 8943 | G153: 8127 | H153: 6905
A154: 66 | E154: 14619 | F154: 10392 | G154: 9446 | H154: 8023
A155: 67 | E155: 15966 | F155: 11349 | G155: 10317 | H155: 8760
A156: 68 | E156: 17681 | F156: 12569 | G156: 11427 | H156: 9700
A157: 69 | E157: 19454 | F157: 13829 | G157: 12569 | H157: 10675
A158: 70 | E158: 22893 | F158: 16273 | G158: 14646 | H158: 12553
A159: 71 | E159: 23796 | F159: 16916 | G159: 15219 | H159: 13045
A160: 72 | E160: 24468 | F160: 17393 | G160: 15652 | H160: 13416
A161: 73 | E161: 25369 | F161: 18034 | G161: 16225 | H161: 13911
A162: 74 | E162: 25812 | F162: 18348 | G162: 16513 | H162: 14156
A163: 75 | B163: o más | E163: 26939 | F163: 19150 | G163: 17231 | H163: 14771
A164: 1 | B164: Hijo | E164: 1089 | F164: 775 | G164: 653 | H164: 483
A165: 2 | B165: Hijos | E165: 1729 | F165: 1229 | G165: 1038 | H165: 766
A166: 3 | B166: Hijos o más | E166: 2535 | F166: 1801 | G166: 1522 | H166: 1124
A167: 1 | B167: Rider Comp. Maternidad | D167: 0 | E167: 0 | F167: 225 | G167: 225 | H167: 225
A168: 1 | B168: Transplante de organos | D168: 0 | E168: 0 | F168: 0 | G168: 0 | H168: 0
A170: TARIFAS SEMESTRALES
A171: EDAD
D172: CW2 | E172: CW3 | F172: CW4 | G172: CW5 | H172: CW6
A173: 18 | B173: - 24 | E173: =E140*$L$2 -> 1418.81 | F173: 1008.59 | G173: 714.97 | H173: 543.25
A174: 25 | B174: - 29 | E174: =E141*$L$2 -> 1571.98 | F174: 1117.24 | G174: 791.82 | H174: 603.67
A175: 30 | B175: - 34 | E175: =E142*$L$2 -> 1762.78 | F175: 1252.92 | G175: 958.77 | H175: 731.4
A176: 35 | B176: - 39 | E176: =E143*$L$2 -> 1973.19 | F176: 1402.91 | G176: 1073.78 | H176: 819.91
A177: 40 | B177: - 44 | E177: =E144*$L$2 -> 2194.2 | F177: 1559.79 | G177: 1183.49 | H177: 903.12
A178: 45 | B178: - 49 | E178: =E145*$L$2 -> 2453.37 | F178: 1744.76 | G178: 1322.35 | H178: 1010.18
A179: 50 | B179: - 54 | E179: =E146*$L$2 -> 3220.28 | F179: 2289.07 | G179: 1887.86 | H179: 1443.19
A180: 55 | B180: - 59 | E180: =E147*$L$2 -> 3426.98 | F180: 2435.88 | G180: 2008.17 | H180: 1536.47
A181: 60 | E181: =E148*$L$2 -> 3898.68 | F181: 2771.37 | G181: 2388.71 | H181: 1917.54
A182: 61 | E182: =E149*$L$2 -> 4188.06 | F182: 2977.01 | G182: 2566.26 | H182: 2059.58
A183: 62 | E183: =E150*$L$2 -> 4586.62 | F183: 3260.56 | G183: 2809.53 | H183: 2256.21
A184: 63 | E184: =E151*$L$2 -> 4874.94 | F184: 3465.67 | G184: 2986.55 | H184: 2399.31
A185: 64 | E185: =E152*$L$2 -> 5273.5 | F185: 3748.69 | G185: 3231.41 | H185: 2595.41
A186: 65 | E186: =E153*$L$2 -> 6667.4 | F186: 4739.79 | G186: 4307.31 | H186: 3659.65
A187: 66 | E187: =E154*$L$2 -> 7748.07 | F187: 5507.76 | G187: 5006.38 | H187: 4252.19
A188: 67 | E188: =E155*$L$2 -> 8461.98 | F188: 6014.97 | G188: 5468.01 | H188: 4642.8
A189: 68 | E189: =E156*$L$2 -> 9370.93 | F189: 6661.57 | G189: 6056.31 | H189: 5141
A190: 69 | E190: =E157*$L$2 -> 10310.62 | F190: 7329.37 | G190: 6661.57 | H190: 5657.75
A191: 70 | E191: =E158*$L$2 -> 12133.29 | F191: 8624.69 | G191: 7762.38 | H191: 6653.09
A192: 71 | E192: =E159*$L$2 -> 12611.88 | F192: 8965.48 | G192: 8066.07 | H192: 6913.85
A193: 72 | E193: =E160*$L$2 -> 12968.04 | F193: 9218.29 | G193: 8295.56 | H193: 7110.48
A194: 73 | E194: =E161*$L$2 -> 13445.57 | F194: 9558.02 | G194: 8599.25 | H194: 7372.83
A195: 74 | E195: =E162*$L$2 -> 13680.36 | F195: 9724.44 | G195: 8751.89 | H195: 7502.68
A196: 75 | B196: o más | E196: =E163*$L$2 -> 14277.67 | F196: 10149.5 | G196: 9132.43 | H196: 7828.63
A197: 1 | B197: Hijo | E197: =E164*$L$2 -> 577.17 | F197: 410.75 | G197: 346.09 | H197: 255.99
A198: 2 | B198: Hijos | E198: =E165*$L$2 -> 916.37 | F198: =F165*$L$2 -> 651.37 | G198: 550.14 | H198: 405.98
A199: 3 | B199: Hijos o más | E199: =E166*$L$2 -> 1343.55 | F199: =F166*$L$2 -> 954.53 | G199: 806.66 | H199: 595.72
A200: 1 | B200: Rider Comp. Maternidad | D200: =+D167*$L$2 -> 0 | E200: =E167*$L$2 -> 0 | F200: 119.25 | G200: 119.25 | H200: 119.25
A201: 1 | B201: Transplante de organos | D201: 0 | E201: 0 | F201: 0 | G201: 0 | H201: 0
A203: COMPLETE (LATINAMERICA ONLY)
A204: TARIFAS ANUALES
A205: EDAD
A207: 18 | B207: - 24
A208: 25 | B208: - 29
A209: 30 | B209: - 34
A210: 35 | B210: - 39
A211: 40 | B211: - 44
A212: 45 | B212: - 49
A213: 50 | B213: - 54
A214: 55 | B214: - 59
A215: 60
A216: 61
A217: 62
A218: 63
A219: 64
A220: 65
A221: 66
A222: 67
A223: 68
A224: 69
A225: 70
A226: 71
A227: 72
A228: 73
A229: 74
A230: 75 | B230: o más
A231: 1 | B231: Hijo
A232: 2 | B232: Hijos
A233: 3 | B233: Hijos o más
A234: 1 | B234: Rider Comp. Maternidad
A235: 1 | B235: Transplante de organos
A237: TARIFAS SEMESTRALES
A238: EDAD
A240: 18 | B240: - 24
A241: 25 | B241: - 29
A242: 30 | B242: - 34
A243: 35 | B243: - 39
A244: 40 | B244: - 44
A245: 45 | B245: - 49
A246: 50 | B246: - 54
A247: 55 | B247: - 59
A248: 60
A249: 61
A250: 62
A251: 63
A252: 64
A253: 65
A254: 66
A255: 67
A256: 68
A257: 69
A258: 70
A259: 71
A260: 72
A261: 73
A262: 74
A263: 75 | B263: o más
A264: 1 | B264: Hijo
A265: 2 | B265: Hijos
A266: 3 | B266: Hijos o más
A267: 1 | B267: Rider Comp. Maternidad
A268: 1 | B268: Transplante de organos
A270: ADVANTAGE (WORLDWIDE)
A271: TARIFAS ANUALES
A272: EDAD
... 71 more rows
